[Event "Slovakian ECo-C Extraliga 2024-25"]
[Site "Slovakia"]
[Date "2025.02.15"]
[Round "5.2"]
[White "Laurusas, Tomas"]
[Black "Mazur, Stefan"]
[Result "1-0"]
[Annotator "TA"]
[ECO "A50"]
[WhiteElo "2578"]
[BlackElo "2444"]
[PlyCount "113"]
[EventDate "2024.09.12"]
[EventType "team-tourn"]
[EventCountry "SVK"]
[SourceTitle "playchess.com"]
[Source "ChessBase"]
[SourceQuality "1"]
[TimeControl "5400+30"]

{[%evp 9,113,35,54,38,39,47,45,23,40,21,13,-7,16,-42,-13,-4,-15,-10,-14,-4,-11,-13,-20,-27,0,0,0,-5,0,-35,-37,-44,-39,-33,-35,-35,-37,-41,0,-7,0,-15,0,-33,-14,-18,-9,-26,-2,-5,0,0,0,-14,0,0,0,0,0,0,0,0,0,-7,0,0,0,0,0,0,0,0,0,-8,-8,-255,-220,-205,0,-8,0,0,63,4,138,132,132,132,139,136,228,230,233,233,233,233,309,137,313,322,787,769,702,687,29998,29999]} 1. d4 {[%emt 0:00:02]} Nf6 {[%emt 0:00:21]} 2. c4 {[%emt 0:00:41]} Nc6 {[%emt 0:00:12]} 3. Nf3 {[%emt 0:03:31]} e6 {[%emt 0:00:12]} 4. a3 {[%emt 0:02:00]} d5 {[%emt 0:00:20]} 5. Nc3 {[%emt 0:01:25]} Ne4 {[%emt 0:00:18]} 6. Qc2 {[%emt 0:02:36] E10: Blumenfeld Gambit.} Nxc3 {[%emt 0:00:31]} 7. Qxc3 {[%emt 0:00:09]} a5 {[%emt 0:00:22][%cal Of8b4]} 8. Bg5 $146 {[%emt 0:08:34] White is slightly better.} (8. b3 a4 9. b4 dxc4 10. Qxc4 Bd7 11. e4 Na7 12. Qc2 Bb5 13. Bxb5+ Nxb5 14. Bb2 {0-1 Kretchetov,A (2345)-Sevillano,E (2562) Reno Far West op 2007 (3)}) 8... f6 {[%emt 0:01:17]} 9. Be3 {[%emt 0:12:00]} a4 {[%emt 0:11:23]} 10. Qc2 {[%emt 0:21:07]} Na5 {[%emt 0:09:01]} 11. Nd2 {[%emt 0:01:32]} ({White should try} 11. cxd5 $11 Nb3 12. Rd1) 11... Nxc4 {[%emt 0:08:36]} 12. Nxc4 {[%emt 0:00:13]} dxc4 {[%emt 0:00:09]} 13. Qxc4 {[%emt 0:00:08]} Qd5 {[%emt 0:00:22]} 14. Rc1 {[%emt 0:05:05]} Bd6 {[%emt 0:01:28]} 15. Bd2 {[%emt 0:03:36]} Qxc4 {[%emt 0:16:16]} 16. Rxc4 {[%emt 0:00:32]} e5 {[%emt 0:00:23]} 17. d5 {[%emt 0:04:16] Repels Be6} Bd7 {[%emt 0:03:12]} 18. e4 {[%emt 0:04:16]} Ke7 {[%emt 0:02:51]} 19. h4 {[%emt 0:04:36]} b5 {[%emt 0:06:03]} 20. Rc2 {[%emt 0:02:00]} Rhb8 {[%emt 0:00:54]} 21. Bd3 {[%emt 0:06:27]} b4 {[%emt 0:01:29]} 22. axb4 {[%emt 0:01:58]} Bxb4 {[%emt 0:00:47]} 23. Ke2 {[%emt 0:00:43]} Bd6 {[%emt 0:04:15]} 24. Ra1 {[%emt 0:02:16]} Rb3 {[%emt 0:01:09]} 25. Bc1 {[%emt 0:05:25]} f5 {[%emt 0:08:54]} 26. f3 {[%emt 0:01:35]} f4 {[%emt 0:00:42]} 27. Bc4 {[%emt 0:01:35]} Rb6 {[%emt 0:07:53]} 28. Bd2 {[%emt 0:01:27]} Bc5 {[%emt 0:04:13]} 29. Bc3 {[%emt 0:01:16]} Kd6 {[%emt 0:00:07]} 30. Rd2 {[%emt 0:03:41]} Rab8 {[%emt 0:02:10]} 31. Ra2 {[%emt 0:00:38]} g5 {[%emt 0:04:32]} 32. hxg5 {[%emt 0:00:16]} Rg8 {[%emt 0:00:11]} 33. Kd3 {[%emt 0:00:49]} Rxg5 {[%emt 0:00:14]} 34. Ra1 {[%emt 0:00:17]} Rh5 {[%emt 0:02:45]} 35. Rdd1 {[%emt 0:00:17] and Rh1 should not be overlooked} Rg5 {[%emt 0:00:52]} 36. Rd2 {[%emt 0:00:20]} Rb8 {[%emt 0:00:44]} 37. b3 {[%emt 0:01:03]} axb3 {[%emt 0:02:59]} 38. Ra6+ {[%emt 0:00:01]} Rb6 {[%emt 0:00:35]} 39. Rxb6+ {[%emt 0:00:28]} cxb6 {[%emt 0:00:32]} 40. Bxb3 {[%emt 0:00:25]} h5 {[%emt 0:00:35]} 41. Ra2 {[%emt 0:00:00]} h4 {[%emt 0:00:00]} 42. Be1 {[%emt 0:00:00] Wards off Rg3} (42. Kc4 $1 $11 {and White is okay.}) 42... h3 $19 {[%emt 0:00:00]} 43. gxh3 {[%emt 0:00:00]} Bxh3 $2 {[%emt 0:00:00]} (43... Rg1 $1 $19 {[%cal Rg1e1]} 44. Bh4 Rf1 (44... Bxh3 45. Ra7 $11)) 44. Rh2 {[%emt 0:00:00]} Rh5 {[%emt 0:00:00] and ...Bf1+ would now be decisive} 45. Kc3 {[%emt 0:00:00]} Rh7 {[%emt 0:00:00]} ({Better is} 45... Bd4+ $11 46. Kd2 Bg4 47. Rxh5 Bxh5) 46. Bc4 {[%emt 0:00:00]} (46. Ba4 $1 $14) 46... Bg1 {[%emt 0:00:00]} (46... Rh5 $11 {remains equal.}) 47. Rh1 $16 {[%emt 0:00:00]} Bd4+ {[%emt 0:00:00]} 48. Kb3 $1 Bf5 {[%emt 0:00:23]} 49. Bb4+ $1 {[%emt 0:00:00]} Bc5 {[%emt 0:00:33] [#]} (49... Kd7 $16) 50. Rg1 $1 $18 {[%emt 0:00:00]} Bd7 {[%emt 0:02:09]} 51. Rg6+ {[%emt 0:00:00]} Kc7 {[%emt 0:00:03] [#]} 52. d6+ $1 {[%emt 0:02:14]} Kc6 {[%emt 0:01:29]} 53. Bd5+ {[%emt 0:00:10]} Kb5 {[%emt 0:00:10]} 54. Bc3 {[%emt 0:00:02]} Bd4 $2 {[%emt 0:01:59]} (54... Ka6 55. Rf6 (55. Bxe5 Rh3 $16) 55... Rg7 56. Bxe5 Rg3 57. Rxf4 Rg6) 55. Bxd4 {[%emt 0:01:19]} exd4 {[%emt 0:00:02]} 56. Rg5 {[%emt 0:00:16] White wants to mate with Bb7+.} Rh6 {[%emt 0:01:04][%cal Ob5c5]} 57. Bb7+ {[%emt 0:00:06] Never resign too early!   Weighted Error Value: White=0.13 (very precise) /Black=0.37  Loses game:     	White=1     	Black=1      Missed win:     	---       	Black=1      Mistake:       	White=2     	Black=4      Inaccurate:     	White=2     	Black=3      OK:         	White=20    	Black=23     Best:        	White=3     	Black=3      Strong:       	White=4     	---} 1-0

[Event "Slovakian ECo-C Extraliga 2024-25"]
[Site "Slovakia"]
[Date "2025.02.15"]
[Round "5.2"]
[White "Finek, Vaclav"]
[Black "Mrva, Martin"]
[Result "1/2-1/2"]
[Annotator "TA"]
[ECO "E66"]
[WhiteElo "2478"]
[BlackElo "2398"]
[PlyCount "206"]
[EventDate "2024.09.12"]
[EventType "team-tourn"]
[EventCountry "SVK"]
[SourceTitle "playchess.com"]
[Source "ChessBase"]
[SourceQuality "1"]
[TimeControl "5400+30"]

{[%evp 20,206,10,-6,17,23,30,24,25,23,44,40,56,42,63,20,21,20,32,14,32,28,18,22,24,0,4,0,0,0,52,55,39,47,70,32,32,32,50,47,79,0,0,-113,0,0,0,-39,0,-6,-5,-16,39,41,33,18,51,37,59,43,127,28,30,36,30,35,28,0,12,2,35,0,0,0,45,46,46,79,71,0,12,0,0,0,0,0,141,0,0,0,0,0,0,0,0,0,0,0,0,0,0,0,0,0,0,0,0,0,0,0,0,0,1,1,8,8,8,1,1,1,1,1,1,1,1,0,1,1,1,1,8,0,1,1,1,1,1,1,8,8,8,8,8,1,1,1,1,0,8,8,8,8,64,1,1,1,8,8,8,8,8,8,8,8,8,0,0,0,0,0,0,0,0,0,0,0,0,0,0,0,0,0,0,0,0,0,0,0,0]} 1. d4 {[%emt 0:00:03]} Nf6 {[%emt 0:00:07]} 2. c4 {[%emt 0:00:06]} g6 {[%emt 0:00:16]} 3. Nf3 {[%emt 0:00:09]} Bg7 {[%emt 0:00:06]} 4. g3 {[%emt 0:00:07]} O-O {[%emt 0:00:08]} 5. Bg2 {[%emt 0:00:05]} c5 {[%emt 0:02:29]} 6. O-O {[%emt 0:00:30]} d6 {[%emt 0:01:21]} 7. Nc3 {[%emt 0:00:12]} Nc6 {[%emt 0:00:15]} 8. d5 {[%emt 0:00:22]} Na5 {[%emt 0:00:14]} 9. Nd2 {[%emt 0:00:15]} e6 {[%emt 0:00:38]} 10. Rb1 {[%emt 0:01:42]} exd5 {[%emt 0:09:08]} 11. cxd5 {[%emt 0:00:08]} Bf5 {[%emt 0:11:31] E66: King's Indian: Fianchetto: 6...c5 7 0-0 Nc6 8 d5.} 12. e4 {[%emt 0:02:57]} Bd7 {[%emt 0:00:08]} 13. b3 {[%emt 0:09:37]} b5 {[%emt 0:04:22][%cal Bb7b5,Bb5b4][%mdl 32] White has an edge.} 14. Qc2 {[%emt 0:01:18]} b4 {[%emt 0:04:09]} 15. Nd1 {[%emt 0:03:01]} Bb5 {[%emt 0:10:29]} 16. Re1 {[%emt 0:00:39]} Ng4 {[%emt 0:03:50]} 17. h3 {[%emt 0:19:33]} Ne5 {[%emt 0:01:18]} 18. Bf1 $146 {[%emt 0:00:16] Against Bd3} (18. Nb2 Qb6 19. Ndc4 Nexc4 20. bxc4 Bxb2 21. Bxb2 Nxc4 22. Bf6 Ne5 23. Qd2 Nd7 24. Ba1 {0-1 Aczel,G (2502)-Banh,G (2400) Budapest SixDays 06 GM-A 2024 (2)}) 18... Qd7 {[%emt 0:20:09]} (18... Bxf1 19. Rxf1 Rc8 20. Ne3 Qd7) 19. Kg2 {[%emt 0:03:20]} Rac8 {[%emt 0:03:02]} 20. Ne3 {[%emt 0:05:44]} Bxf1+ {[%emt 0:02:31]} 21. Rxf1 {[%emt 0:00:15]} Qb5 {[%emt 0:01:34]} (21... c4 {seems wilder.} 22. bxc4 Bh6 23. Ng4 Nxg4 24. hxg4 Bxd2 25. Qxd2 Nxc4 26. Qxb4 Qxg4 27. f3 Qd7) 22. Ndc4 {[%emt 0:03:59]} (22. Bb2 c4 23. Nexc4 (23. Bxe5 cxb3 24. Qd1 bxa2 $17) 23... Nexc4 24. bxc4 Nxc4 $15) 22... Naxc4 {[%emt 0:02:48]} 23. bxc4 {[%emt 0:00:44]} Qa6 {[%emt 0:00:21]} 24. Bb2 {[%emt 0:04:47]} Rfe8 {[%emt 0:01:35]} (24... Qxa2 $2 25. Ra1 b3 26. Qe2 $18) (24... Rce8 $11) 25. g4 $14 {[%emt 0:05:20]} (25. f4 Nd7 $11) 25... h6 {[%emt 0:02:41]} (25... Qxa2 $2 26. Ra1 $18) 26. h4 {[%emt 0:04:13]} Re7 {[%emt 0:03:23]} (26... Qxa2 $2 27. Ra1 $18) 27. Ba1 {[%emt 0:19:13]} Rce8 {[%emt 0:01:00][%cal Oe5g4]} 28. f3 {[%emt 0:00:06]} (28. f4 Nc6 29. Bxg7 (29. dxc6 Rxe4 30. Rf3 Bxa1 $19) 29... Rxe4 $19) 28... Qa3 {[%emt 0:07:01]} 29. Rb3 {[%emt 0:00:27]} Qa4 {[%emt 0:00:06]} 30. g5 {[%emt 0:02:45]} (30. f4 Nxg4 31. Nxg4 Rxe4 $11) (30. h5 $1 $16) 30... h5 $11 {[%emt 0:00:25]} 31. Qb2 {[%emt 0:03:36] [#]} (31. f4 $11 Nd7 (31... Ng4 32. Nxg4 hxg4 33. e5 $16) 32. e5 (32. Bxg7 $2 Rxe4 33. Bh6 Rxe3 $19)) 31... f5 {[%emt 0:01:33]} 32. gxf6 {[%emt 0:00:14]} Bxf6 {[%emt 0:00:05][%cal Oe8f8]} 33. Qe2 {[%emt 0:03:14]} Bg7 {[%emt 0:01:18][%cal Oe5f3]} (33... Bxh4 34. Kh1 $14) (33... Qd7 $5) 34. Kh1 {[%emt 0:01:05]} Qd7 {[%emt 0:00:36]} 35. Qg2 {[%emt 0:01:14] Repels Qh3+} Kh7 {[%emt 0:01:21]} (35... a5 $11) 36. Rg1 $14 {[%emt 0:01:48]} Kh8 {[%emt 0:01:40]} 37. f4 $1 {[%emt 0:02:30]} (37. Bxe5 Bxe5 38. Nd1 (38. a3 $2 bxa3 39. Rxa3 Rf8 $19) 38... Rf7 $17) 37... Ng4 {[%emt 0:00:42]} 38. Bxg7+ {[%emt 0:00:06]} Rxg7 {[%emt 0:01:20]} 39. Nxg4 {[%emt 0:01:00]} (39. e5 dxe5 40. Nxg4 hxg4 $11) 39... Qxg4 {[%emt 0:00:10]} (39... hxg4 $14 40. Re3 Rh7 41. Qb2+ (41. Qxg4 Qe7 $14) 41... Kg8) 40. Qf2 {[%emt 0:01:55]} (40. Qxg4 $16 hxg4 41. Re3) 40... Qd7 $11 {[%emt 0:01:32]} 41. Re3 {[%emt 0:01:19]} Rf8 {[%emt 0:00:00]} 42. Rg5 {[%emt 0:00:00]} Qe7 {[%emt 0:00:00]} 43. Kg2 {[%emt 0:00:00]} a5 $1 {[%emt 0:00:00]} 44. e5 {[%emt 0:00:00]} Rf5 {[%emt 0:00:00]} 45. Rxf5 {[%emt 0:00:00]} (45. Kh3 Qf8 46. Rxf5 Qxf5+ 47. Kg2) 45... gxf5+ $14 {[%emt 0:00:00][%mdl 4096] Endgame KQR-KQR} 46. Kf3 {[%emt 0:00:00]} a4 {[%emt 0:00:00]} 47. exd6 {[%emt 0:00:00]} Qxd6 {[%emt 0:00:00]} 48. Re6 {[%emt 0:00:05] Dancing on a razor blade.} Qf8 {[%emt 0:01:27] [#]} 49. Qc2 {[%emt 0:02:43] White is more active.} ({White should play} 49. Qe2 $1 $16 {Re8 would now be deadly.} Kh7 50. Kf2) 49... a3 {[%emt 0:02:43]} 50. Rh6+ {[%emt 0:01:11]} Rh7 {[%emt 0:02:17]} 51. Rg6 {[%emt 0:00:48]} Re7 {[%emt 0:00:24]} 52. Rg5 {[%emt 0:01:06][%csl LRf5,LRh5]} Qe8 {[%emt 0:00:14] [#]} (52... Qf6 $1 $11 {keeps the balance.}) 53. Rxf5 {[%emt 0:00:35]} ({But not} 53. Qxf5 $6 Re3+ 54. Kg2 Re2+ 55. Kh3 Re3+ (55... Qe3+ $2 56. Rg3 $18) 56. Kg2 Re2+ 57. Kh1 Re1+ 58. Kh2 Re2+ (58... Qe2+ $2 59. Rg2 $18) 59. Kh1 Re1+ 60. Kh2 Re2+ 61. Kh1 $11) (53. Qd3 $1 $16) 53... Re3+ $11 {[%emt 0:00:12]} 54. Kf2 {[%emt 0:00:01]} Rc3 {[%emt 0:00:26]} 55. Qe2 {[%emt 0:00:54]} Qxe2+ {[%emt 0:01:09]} 56. Kxe2 {[%emt 0:00:01]} Rxc4 {[%emt 0:00:24] KR-KR} 57. d6 {[%emt 0:00:38]} Re4+ {[%emt 0:01:34]} 58. Kf3 {[%emt 0:00:34]} (58. Kd3 $5 Rd4+ $8 59. Kc2 $11) 58... Rd4 {[%emt 0:00:18] ...c4 is the strong threat.} 59. Rxh5+ {[%emt 0:00:23]} Kg7 {[%emt 0:00:05]} 60. Rxc5 {[%emt 0:00:15]} Rxd6 {[%emt 0:00:28]} 61. Rb5 {[%emt 0:00:47]} Rd2 {[%emt 0:00:10]} 62. Rxb4 {[%emt 0:00:22]} Rxa2 {[%emt 0:00:08]} 63. Ra4 {[%emt 0:00:15]} Kh6 {[%emt 0:00:35]} 64. Ra5 {[%emt 0:01:01]} Ra1 {[%emt 0:00:09]} 65. Kg4 {[%emt 0:00:51]} a2 {[%emt 0:00:49]} 66. Ra6+ {[%emt 0:00:25]} Kg7 {[%emt 0:00:54] ( -> ...Rg1+)} 67. Kf5 {[%emt 0:00:05]} Kh7 {[%emt 0:00:09]} 68. h5 {[%emt 0:00:51]} Kg7 {[%emt 0:00:04]} 69. Rg6+ {[%emt 0:00:19]} Kh7 {[%emt 0:00:15]} 70. Rg2 {[%emt 0:00:36]} Kh6 {[%emt 0:00:06]} (70... Rh1 71. Rxa2 Rxh5+ 72. Ke6 Rc5) 71. Rh2 {[%emt 0:00:04]} Kg7 {[%emt 0:00:13]} 72. Rg2+ {[%emt 0:00:52]} Kh6 {[%emt 0:00:14]} 73. Re2 {[%emt 0:00:31]} Kg7 {[%emt 0:00:12]} 74. Re7+ {[%emt 0:00:40]} Kg8 {[%emt 0:02:27]} 75. Re2 {[%emt 0:00:30]} Kg7 {[%emt 0:00:04]} 76. Rf2 {[%emt 0:00:28]} Kh6 {[%emt 0:01:20]} (76... Rh1 77. Rxa2 Rxh5+ 78. Kg4 Rh1) 77. Rb2 {[%emt 0:00:29]} Kg7 {[%emt 0:00:10]} 78. Rb7+ {[%emt 0:00:03]} Kg8 {[%emt 0:00:11]} 79. Ra7 {[%emt 0:00:05]} Kh8 $1 {[%emt 0:00:04]} 80. h6 {[%emt 0:00:34]} Kg8 {[%emt 0:00:06]} (80... Rh1 81. Ra8+ Kh7 82. Rxa2 Rxh6 83. Re2 Kg7) 81. Ra3 {[%emt 0:00:33]} Kh7 {[%emt 0:00:11]} 82. Ra6 {[%emt 0:00:05]} (82. Ra5 Kxh6 83. Ra7 Rf1 84. Rxa2 Rd1 85. Rh2+) 82... Kh8 {[%emt 0:00:54]} (82... Rf1 83. Rxa2 Kxh6 84. Re2 Kh7) 83. Ra7 {[%emt 0:00:29]} Kg8 {[%emt 0:00:06]} (83... Rh1 {simplifies} 84. Ra8+ Kh7 85. Rxa2 Rxh6 86. Re2 Kg7) 84. Rg7+ {[%emt 0:00:12]} Kh8 {[%emt 0:00:07]} 85. Rg2 {[%emt 0:00:17]} Kh7 {[%emt 0:01:38]} (85... Rh1 $11 86. Rxa2 Rxh6) 86. Rh2 {[%emt 0:00:05]} (86. Kg5 $1 $14) 86... Rb1 $132 {[%emt 0:00:34][%mdl 2048] The position is equal. Black puts up resistance} 87. Rxa2 {[%emt 0:00:06]} Rb5+ {[%emt 0:00:03]} 88. Kf6 {[%emt 0:00:24]} Rb6+ {[%emt 0:00:04]} 89. Kg5 {[%emt 0:00:56]} Rg6+ {[%emt 0:00:27]} 90. Kf5 {[%emt 0:00:05]} Rxh6 {[%emt 0:00:14]} 91. Rg2 {[%emt 0:00:46]} Ra6 {[%emt 0:00:12]} 92. Rg4 {[%emt 0:00:57]} Ra5+ {[%emt 0:00:18]} 93. Ke4 {[%emt 0:00:22]} Ra4+ {[%emt 0:00:34]} 94. Kf3 {[%emt 0:00:09]} Ra3+ {[%emt 0:00:13]} 95. Kg2 {[%emt 0:00:26]} Kh6 {[%emt 0:00:16]} 96. Rg5 {[%emt 0:00:06]} Rb3 {[%emt 0:00:08]} 97. Rg4 {[%emt 0:01:01]} Kh5 {[%emt 0:00:17]} 98. Rg8 {[%emt 0:00:07]} Ra3 {[%emt 0:00:30]} 99. f5 {[%emt 0:00:15]} Ra5 {[%emt 0:00:19]} 100. f6 {[%emt 0:00:08] White threatens f7 and mate.} Rf5 {[%emt 0:00:04]} 101. Rf8 {[%emt 0:00:11]} Kg6 {[%emt 0:00:07]} 102. Kg3 {[%emt 0:00:08]} Rxf6 {[%emt 0:00:04]} 103. Rxf6+ {[%emt 0:00:07]} Kxf6 {Weighted Error Value: White=0.17 (very precise) /Black=0.16 (very precise)   Mistake:       	White=6     	Black=6      Inaccurate:     	White=4     	Black=4      OK:         	White=31    	Black=51     Best:        	White=8     	Black=5      Strong:       	White=1     	Black=2} 1/2-1/2

[Event "Slovakian ECo-C Extraliga 2024-25"]
[Site "Slovakia"]
[Date "2025.02.15"]
[Round "5.2"]
[White "Bochnicka, Vladimir"]
[Black "Tazbir, Marcin"]
[Result "1-0"]
[Annotator "TA"]
[ECO "C55"]
[WhiteElo "2345"]
[BlackElo "2502"]
[PlyCount "57"]
[EventDate "2024.09.12"]
[EventType "team-tourn"]
[EventCountry "SVK"]
[SourceTitle "playchess.com"]
[Source "ChessBase"]
[SourceQuality "1"]
[TimeControl "5400+30"]

{[%evp 9,57,35,31,40,31,17,28,23,37,22,25,11,23,0,36,33,68,52,58,68,75,41,46,7,26,20,21,19,56,45,66,53,33,0,308,307,367,306,327,337,650,650,576,569,632,599,900,900,871,853]} 1. e4 {[%emt 0:00:02]} e5 {[%emt 0:00:06]} 2. Nf3 {[%emt 0:00:12]} Nc6 {[%emt 0:00:05]} 3. Bc4 {[%emt 0:00:13]} Nf6 {[%emt 0:00:08]} 4. d3 {[%emt 0:00:19]} h6 {[%emt 0:00:06]} 5. c3 {[%emt 0:00:37]} d6 {[%emt 0:00:06]} 6. a4 {[%emt 0:00:32] C55: Two Knights: 4 d3, 4 d4 exd4 5 e5 and Max Lange Attack.} g5 {[%emt 0:00:39]} 7. Qb3 {[%emt 0:03:51]} Qe7 {[%emt 0:00:10]} 8. a5 {[%emt 0:00:21] White has an edge.} a6 {[%emt 0:00:10]} 9. O-O {[%emt 0:03:45]} Bg7 {[%emt 0:00:07]} 10. Re1 {[%emt 0:01:12]} Nh5 $146 {[%emt 0:05:11]} (10... Nd7 11. Qd1 Nf6 12. Nfd2 Be6 13. Nf1 d5 14. exd5 Nxd5 15. Qb3 O-O-O 16. Qc2 Nf4 17. Bxf4 gxf4 18. Bxe6+ Qxe6 {½-½ Kramer,J (2503)-Lundin,J (2175) EU-ch 24th Petrovac 2024 (1)}) 11. Be3 {[%emt 0:04:30]} O-O {[%emt 0:02:07]} 12. h3 {[%emt 0:04:14]} Kh8 {[%emt 0:08:33]} 13. Nbd2 {[%emt 0:02:33] White is more active.} Nf4 {[%emt 0:06:54]} 14. d4 {[%emt 0:14:41]} h5 {[%emt 0:06:26]} 15. Qd1 {[%emt 0:14:53]} Qf6 {[%emt 0:04:16]} 16. Nf1 {[%emt 0:08:01]} g4 {[%emt 0:11:33]} 17. hxg4 {[%emt 0:01:12]} hxg4 {[%emt 0:00:25]} 18. N3h2 {[%emt 0:04:43][%cal Bf3h2,Bh2g4,Bg4h6][%mdl 32]} exd4 {[%emt 0:09:36]} 19. cxd4 {[%emt 0:00:24]} Nxd4 {[%emt 0:00:14]} 20. Nxg4 {[%emt 0:02:12]} Qg6 {[%emt 0:00:40][%csl LRe4,LRg4]} 21. Nfh2 {[%emt 0:07:26]} (21. Bxf4 {simplifies} Qxg4 22. Qxg4 Bxg4 23. Rac1) 21... Nfe6 {[%emt 0:02:22][%mdl 8192]} (21... Qxe4 $11 22. f3 Qc2 23. Qxc2 (23. Bxd4 $2 Qxg2#) 23... Nh3+ 24. gxh3 Nxc2) 22. Ra3 $18 {[%emt 0:08:23]} c5 {[%emt 0:08:56]} 23. Bc1 {[%emt 0:04:29]} ({Not} 23. Bxd4 Bxd4 24. Rh3+ Kg7 $18) 23... Ng5 {[%emt 0:04:00] Prevents Rh3+} 24. Rg3 {[%emt 0:00:34][%cal Og4e5] Strongly threatening Ne5!.} Nh7 $2 {[%emt 0:02:35] [#]} (24... Be6 25. Ne5 dxe5) 25. Nh6 $1 {[%emt 0:03:57][%mdl 512] White is clearly winning.} Qf6 {[%emt 0:01:06]} 26. Qh5 {[%emt 0:01:18]} Be6 {[%emt 0:01:12] [#]} 27. e5 $1 {[%emt 0:03:17][%mdl 512]} dxe5 {[%emt 0:05:54]} (27... Qg6 28. Rxg6) 28. Bd3 {[%emt 0:00:06][%cal Oh6f7] White threatens Nxf7+! and mate.} Bxh6 {[%emt 0:01:17]} 29. Bxh6 {[%emt 0:00:09] Weighted Error Value: White=0.13 (very precise) /Black=0.75  Loses game:     	---       	Black=1      Mistake:       	---       	Black=1      Inaccurate:     	White=3     	Black=4      OK:         	White=7     	Black=9      Best:        	White=1     	---        Brilliant:      	White=1     	---} 1-0

[Event "Slovakian ECo-C Extraliga 2024-25"]
[Site "Slovakia"]
[Date "2025.02.15"]
[Round "5.2"]
[White "Babula, Vlastimil"]
[Black "Kaczur, Florian"]
[Result "0-1"]
[Annotator "TA"]
[ECO "C55"]
[WhiteElo "2322"]
[BlackElo "2475"]
[PlyCount "42"]
[EventDate "2024.09.12"]
[EventType "team-tourn"]
[EventCountry "SVK"]
[SourceTitle "playchess.com"]
[Source "ChessBase"]
[SourceQuality "1"]
[TimeControl "5400+30"]

{[%evp 10,42,33,27,45,27,43,37,29,22,17,14,14,0,0,-52,-60,-109,-116,-147,-142,-235,-235,-226,-95,-114,-110,-85,-38,-309,-21,-31,0,-29996,-29997]} 1. e4 {[%emt 0:00:03]} e5 {[%emt 0:00:14]} 2. Nf3 {[%emt 0:00:06]} Nc6 {[%emt 0:00:05]} 3. Bc4 {[%emt 0:00:03]} Nf6 {[%emt 0:01:07]} 4. d3 {[%emt 0:00:04]} h6 {[%emt 0:01:34]} 5. O-O {[%emt 0:01:08]} d6 {[%emt 0:00:32]} 6. a4 {[%emt 0:00:33][%cal Ba2a4,Ba4a5][%mdl 32]} g6 {[%emt 0:02:07] C55: Two Knights: 4 d3, 4 d4 exd4 5 e5 and Max Lange Attack.} 7. a5 {[%emt 0:03:38]} Rb8 {[%emt 0:06:40]} 8. h3 {[%emt 0:24:14]} Bg7 {[%emt 0:01:39] White is slightly better.} 9. Be3 {[%emt 0:00:24]} O-O {[%emt 0:03:45]} 10. Nc3 {[%emt 0:00:04]} a6 $146 {[%emt 0:12:07]} (10... b6 11. axb6 axb6 12. d4 exd4 13. Nxd4 Bb7 14. Nxc6 Bxc6 15. Bd5 Bxd5 16. exd5 b5 {½-½ Lu,S (2602)-Oparin,G (2654) FIDE Chess.com Grand Swiss 2019 (7)}) 11. Qb1 {[%emt 0:08:07]} Kh7 {[%emt 0:07:16]} 12. Qa2 {[%emt 0:03:11]} (12. Re1 $11) 12... Nh5 $1 $15 {[%emt 0:02:58]} 13. Nd5 {[%emt 0:03:31]} (13. Ne2 $15 {was preferable.}) 13... f5 $1 $17 {[%emt 0:05:32]} 14. exf5 {[%emt 0:00:32]} Bxf5 {[%emt 0:10:49]} 15. Nh2 {[%emt 0:02:42] [#]} (15. Rae1 $17 {was called for.}) 15... Nd4 $1 $19 {[%emt 0:07:33]} 16. g4 {[%emt 0:12:02]} Bd7 {[%emt 0:02:14]} (16... Qh4 $19 17. gxf5 (17. Bxd4 exd4 18. Rae1 c6 $19) 17... Rxf5 (17... Nxc2 18. Rac1 $16) (17... Nxf5 18. Ba7 $17)) 17. gxh5 $17 {[%emt 0:01:13]} Bxh3 {[%emt 0:09:03] Black is more active.} 18. hxg6+ {[%emt 0:01:08]} Kh8 $1 {[%emt 0:00:15] Hoping for ...Qh4.} 19. Nc3 $2 {[%emt 0:11:33][%mdl 8192] [#]} c6 $2 {[%emt 0:12:29]} (19... Nxc2 20. b4 Nxa1 (20... Nxe3 21. fxe3 Qg5+ 22. Kh1 $11) 21. Rxa1 $16) ({Black should try} 19... Qh4 $1 $19 {( -> ...Nf3+)} 20. Ne4 Nf3+ 21. Nxf3 Rxf3) 20. Bf7 $1 $11 {[%emt 0:01:09][%cal Oa2b1] Black must now prevent Qb1!.} Qh4 {[%emt 0:02:15][%cal Od4f3][%mdl 1024] ( -> ...Nf3+!) Black has compensation. Dancing on a razor blade.} 21. Qb1 $2 {[%emt 0:05:42][%mdl 8192] [#]} Nf3+ $1 {[%emt 0:01:04][%mdl 512] Weighted Error Value: White=0.64/Black=0.32  Loses game:     	White=2     	---        Missed win:     	---       	Black=1      Mistake:       	White=3     	Black=1      OK:         	White=2     	Black=3      Best:        	---       	Black=2      Strong:       	White=1     	Black=4      Brilliant:      	---       	Black=1} 0-1